bitfinex/quotes_ETHUSD_20220111
["timestamp","ask_amount","ask_price","bid_price","bid_amount"]
[1641877650146,3.99875125,3112.6,3112.5,0.79526831]
[1641877650943,5.30716769,3112.6,3112.5,0.79526831]
[1641877651347,8.96377601,3112.6,3112.5,0.79526831]
[1641877651549,5.30716769,3112.6,3112.5,0.79526831]
[1641877652748,4.41236916,3112.6,3112.5,0.79526831]
[1641877652947,4.41236916,3112.6,3112.5,0.80331329]
[1641877657933,4.41236916,3112.6,3112.5,0.77361029]
[1641877659133,8.03187044,3112.6,3112.5,0.77361029]
[1641877659935,4.41236916,3112.6,3112.5,0.77361029]
[1641877660788,4.12119196,3112.6,3112.5,0.77361029]
[1641877664939,4.58319196,3112.6,3112.5,0.77361029]
[1641877666438,4.50288196,3112.6,3112.5,0.77361029]
[1641877670193,3.19446552,3112.6,3112.5,0.77361029]
[1641877671198,4.38975538,3112.6,3112.5,0.77361029]
[1641877675987,2.73246552,3112.6,3112.5,1.07361029]
[1641877676385,2.73246552,3112.6,3112.5,0.77361029]
[1641877676583,2.73246552,3112.6,3112.5,1.07361029]
[1641877676987,2.73246552,3112.7,3112.5,0.77361029]
[1641877681045,2.73246552,3112.7,3112.5,1.07361029]
[1641877681846,0.43774029,3112.8,3112.5,1.07361029]
[1641877682850,0.43774029,3112.8,3112.5,0.77361029]
[1641877683304,0.43774029,3112.8,3112.5,1.07361029]
[1641877683706,0.43774029,3112.8,3112.6,3.48040559]
[1641877683707,0.16,3112.8,3112.6,3.48040559]
[1641877684010,0.16,3112.8,3112.7,5.88031]
[1641877684205,0.16,3112.8,3112.7,10.90907525]
[1641877684404,0.16,3112.8,3112.7,12.20977525]
[1641877685205,0.0001,3112.8,3112.7,12.20977525]
[1641877685405,0.08031,3114.1,3112.7,12.20977525]
[1641877685807,0.00795793,3114.0,3112.7,12.20977525]
[1641877686009,0.00795793,3114.0,3112.9,0.8029671]
[1641877686207,0.00738951,3113.9,3113.0,0.08028]
[1641877686406,1.33501464,3113.7,3113.0,0.38028]
[1641877686807,0.00568424,3113.6,3113.0,0.38028]
[1641877687341,0.00511581,3113.5,3113.0,0.38028]
[1641877687539,0.00511581,3113.5,3113.1,3.6601287]
[1641877687740,0.00454739,3113.4,3113.1,3.9601287]
[1641877687940,0.00454739,3113.4,3113.2,1.0]
[1641877688138,1.33501464,3113.7,3113.1,3.9601287]
[1641877688139,0.00397897,3113.3,3113.1,3.9601287]
[1641877688338,0.00397897,3113.3,3113.0,0.08028]
[1641877688544,0.00341054,3113.2,3113.0,0.08028]
[1641877688938,0.00284212,3113.1,3113.0,0.08028]
[1641877689342,1.11920483,3113.1,3113.0,0.08028]
[1641877690797,1.11920483,3113.1,3112.7,0.08029]
[1641877690990,1.11920483,3113.1,3112.6,0.08031]
[1641877691193,0.0022737,3113.0,3112.5,2.37361029]
[1641877691392,0.0022737,3113.0,3112.5,1.37361029]
[1641877691591,0.00170527,3112.9,3112.5,2.37361029]
[1641877691791,0.00170527,3112.9,3112.5,1.37361029]
[1641877691990,0.00113685,3112.8,3112.5,2.37361029]
[1641877692391,0.0022737,3113.0,3112.5,1.37361029]
[1641877692592,0.0022737,3113.0,3112.5,2.37361029]
[1641877692792,0.00170527,3112.9,3112.5,1.37361029]
[1641877692992,0.00170527,3112.9,3112.6,0.08031]
[1641877693196,0.00113685,3112.8,3112.5,2.45392029]
[1641877693391,0.00113685,3112.8,3112.6,3.3853785]
[1641877693591,0.0022737,3113.0,3112.6,3.37463249]
[1641877693993,0.00170527,3112.9,3112.6,3.37463249]
[1641877694465,0.00113685,3112.8,3112.5,1.37361029]
[1641877694845,0.0022737,3113.0,3112.5,1.37361029]
[1641877695247,0.00170527,3112.9,3112.5,1.37361029]
[1641877695648,0.00113685,3112.8,3112.5,1.37361029]
[1641877696048,0.0022737,3113.0,3112.5,1.37361029]
[1641877696455,0.00170527,3112.9,3112.5,1.37361029]
[1641877696852,0.00113685,3112.8,3112.5,1.37361029]
[1641877697252,0.0022737,3113.0,3112.5,1.37361029]
[1641877697652,1.11636271,3113.1,3112.6,3.37694328]
[1641877697653,0.00170527,3112.9,3112.6,3.37694328]
[1641877698185,0.00113685,3112.8,3112.6,3.37694328]
[1641877698589,0.0022737,3113.0,3112.6,3.37694328]
[1641877698993,0.00170527,3112.9,3112.6,3.37694328]
[1641877699194,0.00170527,3112.9,3112.6,3.45725328]
[1641877699390,0.00113685,3112.8,3112.6,3.45725328]
[1641877699791,0.00511581,3113.5,3112.6,3.45725328]
[1641877699993,0.08029,3113.4,3112.6,3.45725328]
[1641877700189,0.08483739,3113.4,3112.6,3.45725328]
[1641877700391,1.36610215,3113.2,3112.6,3.45725328]
[1641877700690,0.00284212,3113.1,3112.6,0.08031]
[1641877701094,0.0022737,3113.0,3112.6,0.08031]
[1641877701291,0.0022737,3113.0,3112.6,3.54699515]
[1641877701495,0.00170527,3112.9,3112.6,3.54699515]
[1641877701944,0.00113685,3112.8,3112.6,0.08031]
[1641877702340,0.00284212,3113.1,3112.6,0.08031]
[1641877702739,0.0022737,3113.0,3112.6,3.45911827]
[1641877703138,0.00170527,3112.9,3112.6,3.45911827]
[1641877703542,0.00113685,3112.8,3112.6,3.45911827]
[1641877703942,0.00284212,3113.1,3112.6,3.45911827]
[1641877704246,0.0022737,3113.0,3112.6,3.45911827]
[1641877704649,0.00170527,3112.9,3112.6,3.45911827]
[1641877705045,0.00113685,3112.8,3112.6,3.45911827]
[1641877705446,0.00284212,3113.1,3112.6,3.45911827]
[1641877705891,0.0022737,3113.0,3112.6,3.45911827]
[1641877706392,0.00170527,3112.9,3112.6,3.45911827]
[1641877706689,0.00113685,3112.8,3112.6,3.45911827]
[1641877706892,0.00113685,3112.8,3112.6,0.08031]
[1641877707090,0.00284212,3113.1,3112.6,0.08031]
[1641877707289,0.00284212,3113.1,3112.6,3.471384]
[1641877707492,0.0022737,3113.0,3112.6,3.471384]
[1641877707888,0.00170527,3112.9,3112.6,3.471384]
[1641877708292,0.00113685,3112.8,3112.6,3.471384]
[1641877708691,1.53564411,3113.4,3112.6,3.471384]
[1641877709090,0.00397897,3113.3,3112.6,0.08031]
[1641877709546,0.00341054,3113.2,3112.6,0.08031]
[1641877709945,0.00284212,3113.1,3112.6,0.08031]
[1641877710342,0.0022737,3113.0,3112.6,0.08031]
[1641877710743,0.00170527,3112.9,3112.6,0.08031]
[1641877711143,0.00113685,3112.8,3112.6,0.08031]
[1641877711543,0.00397897,3113.3,3112.6,0.08031]
[1641877711943,0.00341054,3113.2,3112.6,0.08031]
[1641877712147,0.00341054,3113.2,3112.6,3.46870483]
[1641877712343,0.00284212,3113.1,3112.9,3.5]
[1641877712743,0.0022737,3113.0,3112.6,0.08031]
[1641877713196,0.00170527,3112.9,3112.6,3.46432371]
[1641877713594,0.00113685,3112.8,3112.6,3.46432371]
[1641877714001,0.00341054,3113.2,3112.6,3.46432371]
[1641877714198,0.00341054,3113.2,3112.6,0.08031]
[1641877714396,0.00284212,3113.1,3112.6,0.08031]
[1641877714800,0.0022737,3113.0,3112.6,3.55353997]
[1641877715199,0.00170527,3112.9,3112.8,0.8030501]
[1641877715601,0.00341054,3112.9,3112.8,3.77800927]
[1641877715899,0.00341054,3112.9,3112.8,0.38031]
[1641877716299,1.26973647,3112.9,3112.8,0.38031]
[1641877716501,1.26973647,3112.9,3112.8,2.5]
[1641877716950,0.00341054,3112.9,3112.8,2.5]
[1641877717143,0.00341054,3112.9,3112.8,7.05007846]
[1641877717345,0.00341054,3112.9,3112.8,6.05007846]
[1641877717544,0.00341054,3112.9,3112.8,7.05007846]
[1641877720797,0.00341054,3112.9,3112.8,7.13038846]
[1641877721603,0.00341054,3112.9,3112.8,3.58031]
[1641877722599,0.00341054,3112.9,3112.8,7.12025169]
[1641877722999,0.00341054,3112.9,3112.8,7.20485837]
[1641877724842,0.00341054,3112.9,3112.8,3.58031]
[1641877725047,0.00341054,3112.9,3112.8,6.96298039]
[1641877725242,0.00341054,3112.9,3112.8,5.937381]
[1641877725943,0.00341054,3112.9,3112.8,3.5]
[1641877728596,0.00341054,3112.9,3112.8,0.3]
[1641877728995,0.00341054,3112.9,3112.6,3.817691]
[1641877729195,0.00341054,3112.9,3112.6,7.317691]
[1641877729494,0.00113685,3112.8,3112.6,5.937381]
[1641877729695,0.00113685,3112.8,3112.6,2.437381]
[1641877729902,0.08031,3112.7,3112.5,3.21099129]
[1641877730103,0.08031,3113.0,3112.5,3.21099129]
[1641877730396,0.46370527,3112.9,3112.5,3.21099129]
[1641877730597,0.08031,3112.8,3112.5,3.21099129]
[1641877730798,1.1721478,3112.7,3112.5,0.77361029]
[1641877730997,2.33031,3112.6,3112.5,0.77361029]
[1641877731799,0.08031,3112.6,3112.5,0.77201029]
[1641877732044,0.07946,3112.6,3112.5,0.77201029]
[1641877732844,0.08437976,3112.6,3112.5,0.77201029]
[1641877733846,2.81691374,3112.6,3112.5,0.77201029]
[1641877734646,0.06909976,3112.6,3112.5,0.72201029]
[1641877734849,0.06909976,3112.6,3112.5,0.71762029]
[1641877735550,2.8016509,3112.6,3111.6,2.437381]
[1641877735803,0.08032,3112.5,3111.6,2.437381]
[1641877735995,0.462,3112.4,3111.7,0.00511581]
[1641877736193,0.08032,3112.3,3111.7,0.00511581]
[1641877736395,0.462,3112.2,3111.7,0.00511581]
[1641877736594,0.08032,3112.1,3111.7,0.00511581]
[1641877736796,0.462,3112.1,3111.7,0.00511581]
[1641877737395,1.45152857,3112.0,3111.7,0.00511581]
[1641877737598,0.92564323,3111.9,3111.7,0.00511581]
[1641877737798,0.92564323,3111.9,3111.1,0.00852635]
[1641877738195,4.58171855,3111.9,3111.1,0.00852635]
[1641877738596,4.57570501,3111.9,3111.1,0.00852635]
[1641877739451,1.1368814,3111.3,3111.1,0.00852635]
[1641877739650,3.1086,3111.9,3111.1,0.00852635]
[1641877739846,3.1086,3111.9,3111.2,0.08033]
[1641877740045,1.1352,3112.1,3111.4,0.8034721]
[1641877740247,3.60814131,3112.5,3111.5,0.08033]
[1641877740452,3.60814131,3112.5,3111.5,0.60625266]
[1641877740658,3.60814131,3112.5,3111.6,3.61759699]
[1641877740848,4.2192,3112.6,3111.6,5.51623699]
[1641877740849,1.2086,3112.6,3111.6,5.51623699]
[1641877741047,1.2086,3112.6,3111.7,1.01248787]
[1641877741248,1.2086,3112.6,3111.8,0.08032]
[1641877741548,1.2086,3112.6,3111.9,0.00397896]
[1641877741847,1.2086,3112.6,3112.0,0.08032]
[1641877742246,1.2086,3112.6,3112.1,0.00284212]
[1641877743512,1.2086,3112.6,3112.1,0.30284212]
[1641877743705,1.52925525,3112.7,3112.1,0.60284212]
[1641877743906,1.52925525,3112.7,3112.2,0.00227369]
[1641877745507,1.52925525,3112.7,3112.1,0.00284212]
[1641877746207,1.52925525,3112.7,3111.7,0.38032]
[1641877746208,1.52925525,3112.7,3111.9,0.00397896]
[1641877746406,0.462,3112.6,3111.8,0.00454739]
[1641877746807,1.16586439,3112.3,3111.6,0.00568423]
[1641877747048,1.71406949,3111.9,3111.6,0.00568423]
[1641877747456,0.34021909,3111.9,3111.5,0.00625266]
[1641877747850,0.34021909,3111.9,3111.5,1.00625266]
[1641877748050,0.34021909,3111.9,3111.5,0.30625266]
[1641877748250,0.34021909,3111.9,3111.6,0.00568423]
[1641877748651,0.34021909,3111.9,3111.6,0.30568423]
[1641877748950,0.34021909,3111.9,3111.6,0.3]
[1641877749150,0.34021909,3111.9,3111.5,0.30625266]
[1641877749551,0.34021909,3111.9,3111.6,0.00568423]
[1641877749751,0.34021909,3111.9,3111.6,0.30568423]
[1641877749951,0.34021909,3111.9,3111.6,0.00568423]
[1641877750156,0.34021909,3111.9,3111.6,0.30568423]
[1641877750352,0.34021909,3111.9,3111.6,0.3]
[1641877750552,0.34021909,3111.9,3111.5,0.00625266]
[1641877750801,0.85031968,3111.8,3111.5,0.00625266]
[1641877750998,0.00789488,3111.7,3111.4,0.00682108]
[1641877751193,0.00789488,3111.7,3111.3,0.0073895]
[1641877751393,0.00789488,3111.7,3111.0,0.00909477]
[1641877751593,0.85031968,3111.8,3111.0,0.00909477]
[1641877752195,1.24153773,3111.5,3110.9,0.0096632]
[1641877752993,1.24153773,3111.5,3110.8,0.01023162]
[1641877753295,1.24153773,3111.5,3110.8,3.41441122]
[1641877753695,1.24153773,3111.5,3110.9,0.0096632]
[1641877753895,0.00333174,3111.7,3110.9,0.0096632]
[1641877754095,0.00333174,3111.7,3110.8,3.46897998]
[1641877754295,0.00333174,3111.7,3110.9,0.0096632]
[1641877754757,0.80718174,3111.7,3110.9,0.0096632]
[1641877755055,0.0034791,3111.5,3110.9,0.0096632]
[1641877755255,0.462,3111.4,3110.9,0.0096632]
[1641877755554,2.49600171,3111.3,3110.9,0.0096632]
[1641877755855,0.462,3111.2,3110.9,0.0096632]
[1641877756055,1.462,3111.2,3110.9,0.0096632]
[1641877756253,1.462,3111.2,3110.6,0.01136847]
[1641877756856,0.00602288,3111.1,3110.6,0.01136847]
[1641877757059,0.462,3111.1,3110.6,0.01136847]
[1641877757760,0.46532947,3111.1,3110.6,0.01136847]
[1641877757960,1.13855887,3110.7,3110.6,0.01136847]
[1641877758891,4.58855887,3110.7,3110.6,0.01136847]
[1641877760792,1.13855887,3110.7,3110.6,0.01136847]
[1641877761949,3.58855887,3110.7,3110.6,0.01136847]
[1641877762944,3.59218642,3110.7,3110.6,0.01136847]
[1641877763447,1.14218642,3110.7,3110.6,0.01136847]
[1641877764946,3.99218642,3110.7,3110.6,0.01136847]
[1641877767201,1.14218642,3110.7,3110.6,0.01136847]
[1641877767401,0.00362755,3110.7,3110.6,0.01136847]
[1641877772045,0.00362755,3110.7,3110.6,0.09171847]
[1641877772248,0.00362755,3110.7,3110.6,0.98701847]
[1641877772849,0.00362755,3110.7,3110.6,3.1774608]
[1641877773071,4.4699,3112.0,3110.6,1.98701847]
[1641877773298,3.6248,3112.1,3111.1,0.8033705]
[1641877773492,3.6248,3112.1,3111.2,0.38033]
[1641877773794,1.34083438,3111.7,3111.3,0.0073895]
[1641877775994,3.80084539,3112.6,3111.3,0.0073895]
[1641877775995,2.06995083,3113.3,3111.4,0.01214358]
[1641877776195,7.62327358,3113.1,3111.6,0.80326]
[1641877776396,3.53159276,3113.0,3111.7,3.92522]
[1641877776595,3.53159276,3113.0,3111.7,4.22522]
[1641877776802,3.53159276,3113.0,3111.8,0.00454739]
[1641877777046,1.27385871,3112.3,3111.9,0.08032]
[1641877777249,1.27385871,3112.3,3111.8,0.00454739]
[1641877777453,1.27385871,3112.3,3112.0,0.00341054]
[1641877777645,1.27385871,3112.3,3111.7,4.1449]
[1641877777646,1.27385871,3112.3,3111.8,0.00454739]
[1641877777847,1.27385871,3112.3,3111.8,0.01274975]
[1641877778251,1.27385871,3112.3,3111.9,0.00397896]
[1641877778847,2.73325195,3112.2,3111.9,0.00397896]
[1641877779452,1.27385871,3112.3,3111.9,0.00397896]
[1641877780995,2.73319252,3112.2,3111.9,0.00397896]
[1641877782602,0.26819009,3112.1,3111.9,0.00397896]
[1641877782801,6.412,3112.0,3111.9,0.00397896]
[1641877783002,6.112,3112.0,3111.9,0.00397896]
[1641877783200,7.412,3112.0,3111.8,0.00454739]
[1641877783402,6.65,3111.9,3111.8,0.00454739]
[1641877783601,8.15229085,3111.9,3111.8,0.00454739]
[1641877785046,12.26797605,3111.9,3111.8,0.00454739]
[1641877785261,15.00116857,3111.9,3111.8,0.00454739]
[1641877786249,10.88548337,3111.9,3111.8,0.00454739]
[1641877788897,14.77714825,3111.9,3111.8,0.00454739]
[1641877789696,10.88548337,3111.9,3111.8,0.00454739]
[1641877790698,14.71573713,3111.9,3111.8,0.00454739]
[1641877790900,14.72758554,3111.9,3111.8,0.00454739]
[1641877791300,10.88548337,3111.9,3111.8,0.00454739]
[1641877791499,14.86024292,3111.9,3111.8,0.00454739]
[1641877791699,14.81528611,3111.9,3111.8,0.00454739]
[1641877791950,10.88548337,3111.9,3111.8,0.00454739]
[1641877792146,14.72948625,3111.9,3111.8,0.00454739]
[1641877792947,14.72948625,3111.9,3111.8,0.01138269]
[1641877793549,14.73343695,3111.9,3111.8,0.01138269]
[1641877794447,10.88548337,3111.9,3111.8,0.01138269]
[1641877795052,14.72730153,3111.9,3111.8,0.01138269]
[1641877795248,10.88548337,3111.9,3111.8,0.01138269]
[1641877795448,14.81426339,3111.9,3111.8,0.01138269]
[1641877795693,10.88548337,3111.9,3111.8,0.01138269]
[1641877796495,14.82438649,3111.9,3111.8,0.01138269]
[1641877796694,14.78365166,3111.9,3111.8,0.01138269]
[1641877796894,10.88548337,3111.9,3111.8,0.01138269]
[1641877797895,10.88548337,3111.9,3111.8,0.00454739]
[1641877798295,2.32874634,3111.0,3110.7,0.01080004]
[1641877798495,0.97550666,3111.0,3110.7,0.01080004]
[1641877798896,0.97550666,3111.0,3110.7,0.31080004]
[1641877799096,4.4147,3111.8,3110.6,0.01136847]
[1641877799297,4.8767,3111.8,3110.8,0.01023162]
[1641877799548,1.49798229,3111.3,3110.6,0.01136847]
[1641877800649,2.3408804,3111.3,3110.6,0.01136847]
[1641877801651,1.54265714,3110.8,3110.6,0.01136847]
[1641877802053,2.60634932,3110.8,3110.6,0.01136847]
[1641877802250,1.54265714,3110.8,3110.6,0.01136847]
[1641877802853,0.462,3111.5,3110.6,0.01136847]
[1641877803313,0.98320677,3111.3,3110.6,0.01136847]
[1641877803718,1.12700528,3111.1,3110.6,0.01136847]
[1641877805115,1.2056,3111.7,3110.6,0.01136847]
[1641877806520,1.11231604,3111.0,3110.6,0.01136847]
[1641877810150,1.05799946,3110.8,3110.6,0.01136847]
[1641877811493,1.11231604,3111.0,3110.6,0.01136847]
[1641877812194,1.1066379,3111.0,3110.6,0.01136847]
[1641877812997,1.07819293,3110.7,3110.6,0.01136847]
[1641877813399,4.82819293,3110.7,3110.6,0.01136847]
[1641877813595,8.48555908,3110.7,3110.6,0.01136847]
[1641877813797,5.65,3110.6,3110.2,0.08035]
[1641877814198,5.65,3110.6,3110.3,0.00170527]
[1641877814850,1.53158575,3110.5,3110.3,0.00170527]
[1641877817052,1.53158575,3110.5,3110.1,0.00284212]
[1641877817252,0.462,3110.8,3110.1,3.36139273]
[1641877817458,0.462,3110.8,3110.1,3.49758504]
[1641877817652,0.462,3110.8,3110.2,0.00227369]
[1641877817854,4.9393,3111.2,3110.2,0.00227369]
[1641877818204,0.00284212,3111.1,3110.2,0.00227369]
[1641877818607,0.0022737,3111.0,3110.2,1.00227369]
[1641877818904,9.3168,3111.6,3110.3,3.89848187]
[1641877818905,0.00170527,3110.9,3110.3,3.89848187]
[1641877819104,0.00170527,3110.9,3110.4,1.0]
[1641877819302,0.00113685,3110.8,3110.5,3.81829516]
[1641877819502,0.00113685,3110.8,3110.4,2.10472684]
[1641877819704,0.00341054,3111.2,3110.4,1.40472684]
[1641877819904,0.00341054,3111.2,3110.5,3.44798154]
[1641877820103,0.00341054,3111.2,3110.4,2.40472684]
[1641877820303,0.00341054,3111.2,3110.5,3.44032078]
[1641877820905,0.00341054,3111.2,3110.7,0.81380971]
[1641877821105,0.00341054,3111.2,3110.8,4.36667273]
[1641877821307,0.00341054,3111.2,3110.8,0.6]
[1641877822145,0.00341054,3111.2,3110.8,0.68035]
[1641877823447,0.00341054,3111.2,3110.9,0.80342]
[1641877823645,0.00341054,3111.2,3111.0,0.08807339]
[1641877824045,0.00341054,3111.2,3110.9,1.18377]
[1641877824848,0.00341054,3111.2,3110.9,1.9872021]
[1641877826996,0.00341054,3111.2,3110.9,3.51117129]
[1641877827801,4.00849231,3112.4,3111.1,5.65]
[1641877828001,4.00849231,3112.4,3111.2,4.10093507]
[1641877828200,1.1506,3112.7,3111.4,3.21292]
[1641877828201,0.00454739,3112.0,3111.4,3.21292]
[1641877828499,0.00397897,3111.9,3111.5,0.68858999]
[1641877828701,1.26859656,3111.9,3111.5,1.68033]
[1641877828903,1.26859656,3111.9,3111.5,0.68033]
[1641877828904,0.00341054,3111.8,3111.5,0.68033]
[1641877829100,0.00341054,3111.8,3111.5,0.3]
[1641877829299,0.00284212,3111.7,3111.5,0.3]
[1641877829550,0.00284212,3111.7,3111.2,1.68033]
[1641877829749,0.0022737,3111.6,3111.2,3.28692]
[1641877829951,0.0022737,3111.6,3111.2,4.89351]
[1641877830148,0.00170527,3111.5,3111.2,4.89351]
[1641877830548,0.00113685,3111.4,3111.2,4.89351]
[1641877830950,0.00341054,3111.8,3111.2,4.89351]
[1641877831357,1.26461759,3111.9,3111.2,4.89351]
[1641877831358,0.00284212,3111.7,3111.2,4.89351]
[1641877831853,0.0022737,3111.6,3111.3,0.8033198]
[1641877832051,0.0022737,3111.6,3111.4,0.3]
[1641877832254,0.00170527,3111.5,3111.4,1.10329]
[1641877832453,0.00170527,3111.5,3111.4,6.13362]
[1641877832652,0.00170527,3111.5,3111.4,6.43362]
[1641877832853,0.00170527,3111.5,3111.4,7.70351375]
[1641877833056,0.00170527,3111.5,3111.4,8.70351375]
[1641877833704,0.00170527,3111.5,3111.4,7.70351375]
[1641877834114,0.00170527,3111.5,3111.4,8.70351375]
[1641877834305,0.00170527,3111.5,3111.4,7.70351375]
[1641877834505,0.00170527,3111.5,3111.4,8.70351375]
[1641877835404,0.00170527,3111.5,3111.4,7.70351375]
[1641877835603,0.00170527,3111.5,3111.4,8.70351375]
[1641877836406,0.00170527,3111.5,3111.4,5.63033]
[1641877837057,0.00170527,3111.5,3111.4,6.63033]
[1641877837257,0.00170527,3111.5,3111.4,5.63033]
[1641877837458,0.00170527,3111.5,3111.4,6.63033]
[1641877838456,0.00170527,3111.5,3111.4,5.63033]
[1641877839160,0.00170527,3111.5,3111.4,6.63033]
[1641877839759,0.00170527,3111.5,3111.4,0.68033]
[1641877839958,0.00170527,3111.5,3111.4,3.63033]
[1641877840159,0.00170527,3111.5,3111.4,0.38033]
[1641877840360,0.00170527,3111.5,3111.4,0.3]
[1641877840560,0.00170527,3111.5,3111.1,1.38033]
[1641877841002,0.00113685,3111.4,3111.2,0.8034]
[1641877841202,0.00113685,3111.4,3111.2,1.60678]
[1641877841405,0.00284212,3111.7,3111.3,0.3]
[1641877841604,0.00284212,3111.7,3111.3,0.38033]
[1641877841809,0.0022737,3111.6,3111.3,1.1836514]
[1641877842003,0.0022737,3111.6,3111.3,1.4836514]
[1641877842207,0.00170527,3111.5,3111.3,1.4836514]
[1641877842405,0.00170527,3111.5,3111.3,1.4033214]
[1641877842605,0.00113685,3111.4,3111.3,1.4033214]
[1641877843007,0.00113685,3111.4,3111.3,6.1533214]
[1641877843605,0.00113685,3111.4,3111.3,5.1533214]
[1641877846060,0.00113685,3111.4,3111.3,6.1533214]
[1641877847460,0.00113685,3111.4,3111.3,4.35]
[1641877847664,0.00113685,3111.4,3111.3,0.6]
[1641877849526,0.00113685,3111.4,3111.3,3.93035]
[1641877850824,0.00113685,3111.4,3111.3,3.85]
[1641877851627,0.00113685,3111.4,3111.3,7.70849814]
[1641877851825,0.00113685,3111.4,3111.3,4.39235]
[1641877852054,0.00113685,3111.4,3111.3,5.39235]
[1641877857907,0.00113685,3111.4,3111.3,5.312]
[1641877861849,0.31715147,3112.5,3111.5,0.80323]
[1641877862151,0.00568423,3112.4,3111.7,1.40324]
[1641877862550,0.00511581,3112.3,3111.7,2.40324]
[1641877862752,0.00511581,3112.3,3111.7,1.40324]
[1641877862950,0.00454739,3112.2,3111.7,1.6]
[1641877863400,0.00397896,3112.1,3111.7,1.6]
[1641877863802,0.00341054,3112.0,3111.7,1.6]
[1641877864203,0.00284212,3111.9,3111.7,1.6]
[1641877864505,0.00227369,3111.8,3111.7,1.6]
[1641877864705,0.00227369,3111.8,3111.7,5.25]
[1641877866705,0.00227369,3111.8,3111.7,1.6]
[1641877867150,0.00227369,3111.8,3111.7,4.7]
[1641877867350,0.00227369,3111.8,3111.7,1.6]
[1641877867554,0.00227369,3111.8,3111.7,0.6]
[1641877867751,0.00227369,3111.8,3111.7,0.3]
[1641877868352,0.00227369,3111.8,3111.6,0.38032]
[1641877868751,0.00170527,3111.7,3111.6,0.38032]
[1641877869756,0.00170527,3111.7,3111.6,4.38032]
[1641877870051,0.00170527,3111.7,3111.6,5.38032]
[1641877873106,0.00170527,3111.7,3111.6,5.3]
[1641877882854,0.00966347,3111.7,3111.6,5.3]
[1641877884458,0.00966347,3111.7,3111.5,0.08033]
[1641877884658,0.00966347,3111.7,3111.1,1.24793]
[1641877884957,0.00113685,3111.6,3111.2,0.00113685]
[1641877885557,0.00113685,3111.6,3111.2,1.31443962]
[1641877885816,0.00113685,3111.6,3111.3,1.6064661]
[1641877886010,0.00113685,3111.6,3111.4,0.3]
[1641877886707,0.00113685,3111.6,3111.4,1.1032309]
[1641877887109,0.00113685,3111.6,3111.4,2.1032309]
[1641877887910,0.00909361,3111.6,3111.4,2.1032309]
[1641877888109,1.1903,3112.4,3111.9,0.8031468]
[1641877888308,0.31013998,3112.5,3112.1,0.80315]
[1641877888512,0.00397896,3112.3,3112.1,1.10315]
[1641877888909,0.00341054,3112.2,3112.1,1.10315]
[1641877889959,0.00341054,3112.2,3112.1,6.35315]
[1641877891957,0.00341054,3112.2,3112.1,5.55]
[1641877892157,0.00341054,3112.2,3112.1,0.6]
[1641877892360,0.00341054,3112.2,3112.0,0.13819997]
[1641877892559,0.00341054,3112.2,3112.0,0.94134997]
[1641877892758,0.00284211,3112.1,3112.0,0.94134997]
[1641877893415,0.00284211,3112.1,3112.0,5.93806173]
[1641877893615,0.00284211,3112.1,3112.0,7.23806173]
[1641877894015,0.00284211,3112.1,3112.0,7.31838173]
[1641877896617,0.00284211,3112.1,3112.0,5.51523173]
[1641877896816,0.00284211,3112.1,3112.0,6.51523173]
[1641877897260,0.00284211,3112.1,3112.0,6.43491173]
[1641877898461,0.00284211,3112.1,3112.0,4.33819997]
[1641877898861,0.00284211,3112.1,3112.0,0.43819997]
[1641877899067,0.00284211,3112.1,3112.0,0.3]
[1641877899766,0.00284211,3112.1,3111.9,0.14779617]
[1641877900161,0.00227369,3112.0,3111.9,0.14779617]
[1641877900362,0.00227369,3112.0,3111.9,2.69779617]
[1641877901001,0.00227369,3112.0,3111.9,3.29779617]
[1641877901404,0.00227369,3112.0,3111.9,0.74779617]
[1641877901607,0.00227369,3112.0,3111.9,0.3095962]
[1641877903002,0.00227369,3112.0,3111.9,0.3]
[1641877911002,1.29868011,3112.0,3111.9,0.3]
[1641877912858,1.29868011,3112.0,3111.8,0.00961498]
[1641877913266,0.00170527,3111.9,3111.8,0.00961498]
[1641877914159,2.73457834,3111.9,3111.8,0.00961498]
[1641877920255,0.00170527,3111.9,3111.8,0.00961498]
[1641877933214,0.00170527,3111.9,3111.3,0.08032]
[1641877933617,0.00113684,3111.8,3111.4,0.02345179]
[1641877933816,0.00113684,3111.8,3111.5,0.08033]
[1641877934016,0.00284211,3112.1,3111.5,0.08033]
[1641877934215,0.00284211,3112.1,3111.4,0.00113685]
[1641877934456,0.00227369,3112.0,3111.4,0.00113685]
[1641877934858,0.00170527,3111.9,3111.4,0.00113685]
[1641877935156,0.00113684,3111.8,3111.4,0.00113685]
[1641877935556,0.00284211,3112.1,3111.4,0.00113685]
[1641877935956,0.00227369,3112.0,3111.4,0.00113685]
[1641877936355,0.00170527,3111.9,3111.4,0.00113685]
[1641877936755,0.00113684,3111.8,3111.4,0.00113685]
[1641877937156,0.00284211,3112.1,3111.4,0.00113685]
[1641877937558,0.00227369,3112.0,3111.4,0.00113685]
[1641877937957,0.00170527,3111.9,3111.4,0.00113685]
[1641877938503,0.00113684,3111.8,3111.4,0.00113685]
[1641877938702,0.01360535,3111.7,3111.4,0.00113685]
[1641877938901,0.00284211,3112.1,3111.4,0.00113685]
[1641877939101,0.00284211,3112.1,3111.3,0.00170527]
[1641877939300,0.00227369,3112.0,3111.3,0.00170527]
[1641877939702,0.00170527,3111.9,3111.3,0.00170527]
[1641877940110,0.00113684,3111.8,3111.3,0.00170527]
[1641877940502,0.00284211,3112.1,3111.3,0.00170527]
[1641877940905,0.00227369,3112.0,3111.5,1.21432005]
[1641877941103,0.00227369,3112.0,3111.5,2.31758345]
[1641877941304,0.00170527,3111.9,3111.5,2.61758345]
[1641877941503,0.00170527,3111.9,3111.6,0.08033]
[1641877941703,0.00113684,3111.8,3111.6,0.08033]
[1641877942157,0.00341054,3112.2,3111.6,0.08033]
[1641877942558,0.00284211,3112.1,3111.6,0.08033]
[1641877942958,0.00227369,3112.0,3111.6,0.08033]
[1641877943158,0.00227369,3112.0,3111.5,0.68032]
[1641877943358,0.00170527,3111.9,3111.5,0.68032]
[1641877943758,0.00113684,3111.8,3111.5,0.68032]
[1641877944159,0.00341054,3112.2,3111.5,0.68032]
[1641877944563,0.00284211,3112.1,3111.5,0.68032]
[1641877944964,0.00227369,3112.0,3111.5,0.68032]
[1641877945368,0.00170527,3111.9,3111.5,0.68032]
[1641877945809,0.00113684,3111.8,3111.5,0.68032]
[1641877946204,0.00341054,3112.2,3111.5,0.68032]
[1641877946605,0.00284211,3112.1,3111.5,0.68032]
[1641877947104,0.00227369,3112.0,3111.5,0.68032]
[1641877947504,0.00170527,3111.9,3111.5,0.68032]
[1641877947907,0.00113684,3111.8,3111.6,3.74453257]